fUST/lending_fUST_20260203
["ID","MTS","AMOUNT","RATE_DAILY","PERIOD"]
[404426393,1770131441205,-157.37575665,0.0001601,2]
[404426396,1770131441215,-1000.85608057,0.00016011,2]
[404426398,1770131441224,-500.0,0.00016011,2]
[404426399,1770131441233,-1872.44778449,0.00016017,2]
[404426401,1770131441243,-1872.44778449,0.00016124,2]
[404426403,1770131441253,-1009.27088889,0.00016231,2]
[404426406,1770131441264,-863.1768956,0.00016231,2]
[404426408,1770131441273,-500.0,0.00016285,2]
[404426410,1770131441282,-1872.44778449,0.00016338,2]
[404426412,1770131441291,-319.0,0.00016383,2]
[404426414,1770131441300,-710.29,0.00016428,3]
[404426415,1770131441311,-355.15,0.00016428,3]
[404426417,1770131441321,-177.57,0.00016428,3]
[404426419,1770131441330,-532.74,0.00016428,3]
[404426421,1770131441339,-500.0,0.00016438,2]
[404426423,1770131441348,-500.0,0.00016438,2]
[404426425,1770131441358,-500.0,0.00016438,2]
[404426427,1770131441367,-500.0,0.00016438,2]
[404426429,1770131441376,-8.74120733,0.00016438,2]
[404426442,1770131442122,-3e-08,0.00016438,2]
[404426443,1770131442134,-491.25879264,0.00016438,2]
[404426444,1770131442143,-500.0,0.00016438,2]
[404426445,1770131442153,-500.0,0.00016438,2]
[404426446,1770131442162,-500.0,0.00016438,2]
[404426447,1770131442172,-500.0,0.00016438,2]
[404426448,1770131442181,-390.24882428,0.00016438,2]
[404426449,1770131442192,-109.75117572,0.00016438,2]
[404426450,1770131442201,-265.28313067,0.00016438,2]
[404426475,1770131444504,-234.71686933,0.00016438,2]
[404426476,1770131444513,-468.40629467,0.00016438,2]
[404426477,1770131444525,-31.59370533,0.00016438,2]
[404426478,1770131444534,-500.0,0.00016438,2]
[404426479,1770131444544,-500.0,0.00016438,2]
[404426480,1770131444553,-500.0,0.00016438,2]
[404426481,1770131444565,-468.43313067,0.00016438,2]
[404426482,1770131444576,-31.56686933,0.00016438,2]
[404426483,1770131444586,-500.0,0.00016438,2]
[404426484,1770131444595,-457.74927664,0.00016438,2]
[404426485,1770131444607,-42.25072336,0.00016438,2]
[404426486,1770131444616,-500.0,0.00016438,2]
[404426487,1770131444625,-418.46571698,0.00016438,2]
[404426489,1770131445424,-81.53428302,0.00016438,2]
[404426491,1770131445435,-500.0,0.00016438,2]
[404426493,1770131445444,-87.71643137,0.00016438,2]
[404426496,1770131445456,-412.28356863,0.00016438,2]
[404426498,1770131445465,-497.01647947,0.00016438,2]
[404426502,1770131445494,-2.98352053,0.00016438,2]
[404426504,1770131445503,-500.0,0.00016438,2]
[404426507,1770131445512,-500.0,0.00016438,2]
[404426508,1770131445525,-500.0,0.00016438,2]
[404426509,1770131445540,-500.0,0.00016438,2]
[404426510,1770131445549,-500.0,0.00016438,2]
[404426512,1770131445559,-212.81719386,0.00016438,2]
[404426514,1770131445571,-287.18280614,0.00016438,2]
[404426516,1770131445581,-500.0,0.00016438,2]
[404426518,1770131445597,-500.0,0.00016438,2]
[404426520,1770131445614,-316.95658033,0.00016438,2]
[404426529,1770131450938,-183.04341967,0.00016438,2]
[404426530,1770131450947,-500.0,0.00016438,2]
[404426531,1770131450957,-500.0,0.00016438,2]
[404426532,1770131450966,-500.0,0.00016438,2]
[404426533,1770131450976,-515.1306325,0.00016438,2]
[404426534,1770131450986,-500.0,0.00016438,2]
[404426535,1770131450995,-500.0,0.00016438,2]
[404426536,1770131451004,-500.0,0.00016438,2]
[404426537,1770131451013,-500.0,0.00016438,2]
[404426538,1770131451023,-500.0,0.00016438,2]
[404426539,1770131451033,-500.0,0.00016438,2]
[404426540,1770131451043,-500.0,0.00016438,2]
[404426541,1770131451052,-500.0,0.00016438,2]
[404426542,1770131451063,-500.0,0.00016438,2]
[404426543,1770131451072,-301.616413,0.00016438,2]
[404426544,1770131451083,-198.383587,0.00016438,2]
[404426545,1770131451093,-500.0,0.00016438,2]
[404426546,1770131451103,-500.0,0.00016438,2]
[404426547,1770131451111,-500.0,0.00016438,2]
[404426548,1770131451121,-3706.65337104,0.00016438,2]
[404426549,1770131451130,-1667.4370964,0.00016438,2]
[404426550,1770131451142,-1656.21,0.00016438,2]
[404426551,1770131463993,500.0,0.00013273,2]
[404426552,1770131464026,1090.88003071,0.00013821,2]
[404426553,1770131464175,500.0,0.00013273,2]
[404426554,1770131464881,1000.0,0.00013821,2]
[404426555,1770131465005,500.0,0.00013273,2]
[404426556,1770131465070,2000.0,0.00014916,2]
[404426557,1770131465144,1500.0,0.00014368,2]
[404426558,1770131467372,500.0,0.00013699,2]
[404426578,1770131498190,500.0,0.00024989,120]
[404426579,1770131498431,500.0,0.00028988,120]
[404426736,1770131583992,500.0,0.00013273,2]
[404426737,1770131584030,222.8707806,0.00013273,2]
[404426764,1770131704437,216.61256825,0.00013273,2]
[404426765,1770131704461,283.38743175,0.00013273,2]
[404426766,1770131704494,502.30333023,0.00013821,2]
[404426769,1770131774742,500.0,0.00013699,2]
[404426770,1770131779255,8714.31923802,0.0001,2]
[404426771,1770131779280,10000.01,0.0001,2]
[404426772,1770131779306,18556.2704599,0.0001,2]
[404426773,1770131779330,25000.0,0.0001,2]
[404426774,1770131779354,22539.52303012,0.0001,2]
[404426775,1770131779381,22531.53926495,0.0001,2]
[404426776,1770131779409,85310.33800701,0.0001,2]
[404426803,1770131824101,500.0,0.00013273,2]
[404426804,1770131824970,-1175.44824169,0.00014372,2]
[404426815,1770131828021,500.88887402,0.00013699,2]
[404426816,1770131828107,-199.06188292,0.00014372,2]
[404426817,1770131830957,500.0,0.00013699,2]
[404426818,1770131831700,582.74233251,0.00013273,2]
[404426819,1770131832813,-315.96078004,0.00014247,2]
[404426820,1770131834729,-80.40213784,0.00014247,2]
[404426821,1770131834751,-73.80140914,0.00014372,2]
[404426822,1770131836147,-152.48,0.00014372,2]
[404426823,1770131839222,-210.87036275,0.00014372,2]
[404426824,1770131839382,-9024.31494761,0.00014372,2]
[404426825,1770131840601,-227.4593225,0.00014372,2]
[404426826,1770131842059,-407.76396207,0.00013273,2]
[404426839,1770131843508,-104.51097257,0.00013273,2]
[404426841,1770131843544,-134.05383466,0.00013699,2]
[404426842,1770131844722,-365.94616534,0.00013699,2]
[404426843,1770131844777,-9268.11766932,0.00014372,2]
[404426844,1770131844952,-10000.01,0.00014372,2]
[404426845,1770131846454,-301.32497366,0.00014372,2]
[404426846,1770131847262,-10000.01,0.00014372,2]
[404426847,1770131848579,-3091.00169346,0.00014372,2]
[404426849,1770131855231,-527.08830818,0.00014372,2]
[404426852,1770131858380,-400.8208741,0.00014372,2]
[404426853,1770131861402,-346.77166447,0.00014228,2]
[404426857,1770131862811,-4653.22833553,0.00014228,2]
[404426858,1770131863329,-219.10013129,0.00014372,2]
[404426868,1770131865804,-200.77348075,0.00014372,2]
[404426870,1770131868755,-152.29004965,0.00014372,2]
[404426875,1770131870707,-338.6427219,0.00014372,2]
[404426876,1770131873042,-361.53150167,0.00014372,2]
[404426891,1770131879421,-212.54564982,0.00014372,2]
[404426893,1770131885862,500.0,0.00013273,2]
[404426894,1770131887202,-287.47433438,0.00013699,2]
[404426899,1770131888362,649.01207514,0.00013273,2]
[404426912,1770131889381,-124.67728598,0.00013699,2]
[404426913,1770131889404,-375.32271402,0.00013699,2]
[404426916,1770131890812,-124.67728598,0.00013699,2]
[404426917,1770131890836,-375.33030032,0.00013821,2]
[404426919,1770131893972,-624.66969968,0.00013821,2]
[404426920,1770131895063,285.89128994,0.00013273,2]
[404426921,1770131895090,14.08542369,0.00013699,2]
[404426922,1770131895114,485.91457631,0.00013699,2]
[404426923,1770131896427,506.33300735,0.00013699,2]
[404426940,1770131909589,-4260.12291046,0.00014228,2]
[404426945,1770131925995,500.0199842,0.00014228,2]
[404426969,1770131954839,-499.91892598,0.00013699,2]
[404426972,1770131957346,-0.08107402,0.00013699,2]
[404426973,1770131957368,-500.0,0.00013699,2]
[404426974,1770131959391,508.26594532,0.00013273,2]
[404427005,1770131999277,3938.44416129,0.00013699,2]
[404427043,1770132049688,-2.63201846,0.00013699,2]
[404427044,1770132049720,-500.0,0.00013699,2]
[404427045,1770132049752,-502.95309348,0.00013699,2]
[404427046,1770132049783,-500.0,0.00013699,2]
[404427047,1770132049826,-164.08236404,0.00013699,2]
[404427048,1770132049863,-615.0,0.00013699,2]
[404427049,1770132049897,-1000.0,0.00014247,2]
[404427050,1770132049928,-1000.0,0.00014247,2]
[404427051,1770132049963,-430.67504804,0.00014247,2]
[404427058,1770132064486,-500.0,0.00013273,2]
[404427059,1770132064518,-500.0,0.00013273,2]
[404427060,1770132064548,-160.39462294,0.00013699,2]
[404427061,1770132064579,-500.0,0.00013699,2]
[404427062,1770132064610,-500.0,0.00013699,2]
[404427063,1770132064641,-299.97671363,0.00013821,2]
[404427064,1770132064672,-561.57457834,0.00013821,2]
[404427065,1770132064703,-241.9544534,0.00014104,2]
[404427066,1770132064738,-569.32495196,0.00014247,2]
[404427067,1770132064769,-432.73005011,0.00014247,2]
[404427068,1770132064799,-166.66666668,0.00014268,2]
[404427075,1770132095065,-318.6689225,0.00014225,2]
[404427084,1770132127256,500.0,0.00013273,2]
[404427148,1770132185621,451.74361447,0.00013273,2]
[404427191,1770132236884,1354.26,0.00012329,2]
[404427194,1770132247339,1128.55,0.00012329,2]
[404427195,1770132247626,500.0,0.00013273,2]
[404427196,1770132248093,500.0,0.00013273,2]
[404427197,1770132257806,940.46,0.00012329,2]
[404427233,1770132268287,783.71,0.00012329,2]
[404427234,1770132278735,653.1,0.00012329,2]
[404427235,1770132289217,544.25,0.00012329,2]
[404427236,1770132299863,453.54,0.00012329,2]
[404427250,1770132305046,165.68225209,0.00013273,2]
[404427251,1770132310656,377.95,0.00012329,2]
[404427255,1770132321080,314.96,0.00012329,2]
[404427264,1770132332466,262.46,0.00012329,2]
[404427285,1770132342863,218.72,0.00012329,2]
[404427291,1770132353287,182.27,0.00012329,2]
[404427312,1770132394828,-2830.279112,0.00013699,2]
[404427313,1770132394864,-500.0,0.00013699,2]
[404427314,1770132394896,-209.65954322,0.00013699,2]
[404427315,1770132394929,-192.77264225,0.00013699,2]
[404427316,1770132394963,-160.80071676,0.00013759,2]
[404427317,1770132395002,-1012.98597154,0.0001382,2]
[404427318,1770132395265,-187.01402846,0.0001382,2]
[404427319,1770132395302,-300.0,0.0001382,2]
[404427320,1770132395335,-1000.0,0.00013821,2]
[404427321,1770132395368,-1000.0,0.00013821,2]
[404427322,1770132395401,-951.39147836,0.00013821,2]
[404427323,1770132395436,-150.05928928,0.00013915,2]
[404427324,1770132395531,-4503.86947822,0.00013915,2]
[404427325,1770132395563,-179.44107587,0.00014247,2]
[404427326,1770132395597,-300.0,0.00014367,2]
[404427327,1770132426801,258.79,0.00012329,2]
[404427330,1770132437356,215.66,0.00012329,2]
[404427331,1770132443399,-300.0,0.00013634,2]
[404427333,1770132447864,179.72,0.00012329,2]
[404427335,1770132458494,898.61,0.00012329,2]
[404427338,1770132471734,3756.39449097,0.00012,5]
[404427354,1770132519670,414.30874651,0.000135,2]
[404427364,1770132606724,703.4885997,0.00013534,2]
[404427381,1770132631957,-505.5503841,0.00013699,2]
[404427382,1770132631967,-334.34,0.00014368,2]
[404427383,1770132631976,-1500.0,0.00014368,2]
[404427385,1770132631986,-1021.47594718,0.00014368,2]
[404427387,1770132631997,-34.14693549,0.00014372,2]
[404427389,1770132632007,-300.0,0.00014532,2]
[404427391,1770132632017,-1200.0,0.00014532,2]
[404427393,1770132632026,-151.0,0.000146,2]
[404427395,1770132632036,-150.06021504,0.000146,2]
[404427397,1770132632045,-583.32,0.00014632,2]
[404427399,1770132632055,-409.79984234,0.00014632,2]
[404427401,1770132632064,-156.69376432,0.00014632,2]
[404427403,1770132632073,-215.89994332,0.00014632,2]
[404427405,1770132632082,-500.0,0.00014632,2]
[404427407,1770132632092,-500.0,0.00014632,2]
[404427409,1770132632100,-500.0,0.00014632,2]
[404427411,1770132632110,-500.0,0.00014632,2]
[404427413,1770132632119,-500.0,0.00014632,2]
[404427415,1770132632128,-500.0,0.00014632,2]
[404427417,1770132632140,-500.0,0.00014632,2]
[404427419,1770132632151,-500.0,0.00014632,2]
[404427421,1770132632162,-500.0,0.00014632,2]
[404427423,1770132632173,-500.0,0.00014632,2]
[404427425,1770132632183,-500.0,0.00014632,2]
[404427427,1770132632192,-500.0,0.00014632,2]
[404427429,1770132632201,-500.0,0.00014632,2]
[404427431,1770132632210,-500.0,0.00014632,2]
[404427433,1770132632220,-500.0,0.00014632,2]
[404427435,1770132632229,-500.0,0.00014632,2]
[404427437,1770132632238,-500.0,0.00014632,2]
[404427439,1770132632247,-500.0,0.00014632,2]
[404427441,1770132632256,-500.0,0.00014632,2]
[404427443,1770132632265,-500.0,0.00014632,2]
[404427445,1770132632274,-500.0,0.00014632,2]
[404427447,1770132632283,-500.0,0.00014632,2]
[404427449,1770132632292,-500.0,0.00014632,2]
[404427451,1770132632301,-500.0,0.00014632,2]
[404427453,1770132632310,-500.0,0.00014632,2]
[404427455,1770132632320,-500.0,0.00014632,2]
[404427457,1770132632328,-500.0,0.00014632,2]
[404427459,1770132632337,-500.0,0.00014632,2]
[404427461,1770132632347,-565.28196599,0.00014632,2]
[404427463,1770132632356,-500.0,0.00014632,2]
[404427464,1770132632365,-500.0,0.00014632,2]
[404427466,1770132632375,-611.64069301,0.00014632,2]
[404427468,1770132632385,-500.0,0.00014632,2]
[404427471,1770132632394,-450.0,0.00014632,2]
[404427473,1770132632403,-500.0,0.00014632,2]
[404427474,1770132632414,-500.0,0.00014632,2]
[404427476,1770132632424,-500.0,0.00014632,2]
[404427478,1770132632433,-500.0,0.00014632,2]
[404427480,1770132632442,-412.5445518,0.00014632,2]
[404427482,1770132632451,-500.0,0.00014632,2]
[404427483,1770132632463,-407.057484,0.00014632,2]
[404427485,1770132632472,-500.0,0.00014632,2]
[404427487,1770132632482,-500.0,0.00014632,2]
[404427489,1770132632491,-500.0,0.00014632,2]
[404427491,1770132632501,-500.0,0.00014632,2]
[404427493,1770132632509,-500.0,0.00014632,2]
[404427495,1770132632519,-500.0,0.00014632,2]
[404427497,1770132632528,-500.0,0.00014632,2]
[404427499,1770132632537,-500.0,0.00014632,2]
[404427501,1770132632547,-500.0,0.00014632,2]
[404427503,1770132632556,-500.0,0.00014632,2]
[404427505,1770132632565,-500.0,0.00014632,2]
[404427507,1770132632574,-500.0,0.00014632,2]
[404427509,1770132632585,-500.0,0.00014632,2]
[404427511,1770132632594,-500.0,0.00014632,2]
[404427513,1770132632603,-500.0,0.00014632,2]
[404427515,1770132632612,-500.0,0.00014632,2]
[404427517,1770132632621,-500.0,0.00014632,2]
[404427519,1770132632630,-500.0,0.00014632,2]
[404427521,1770132632640,-500.0,0.00014632,2]
[404427523,1770132632649,-500.0,0.00014632,2]
[404427524,1770132632658,-500.0,0.00014632,2]
[404427526,1770132632670,-500.0,0.00014632,2]
[404427528,1770132632679,-500.0,0.00014632,2]
[404427530,1770132632689,-500.0,0.00014632,2]
[404427532,1770132632698,-500.0,0.00014632,2]
[404427534,1770132632708,-500.0,0.00014632,2]
[404427536,1770132632717,-500.0,0.00014632,2]
[404427538,1770132632726,-500.0,0.00014632,2]
[404427540,1770132632735,-500.0,0.00014632,2]
[404427542,1770132632745,-500.0,0.00014632,2]
[404427544,1770132632754,-500.0,0.00014632,2]
[404427546,1770132632764,-197.24346425,0.00014632,2]
[404427548,1770132632774,-500.0,0.00014632,2]
[404427550,1770132632783,-500.0,0.00014632,2]
[404427552,1770132632792,-500.0,0.00014632,2]
[404427554,1770132632801,-500.0,0.00014632,2]
[404427556,1770132632811,-500.0,0.00014632,2]
[404427558,1770132632820,-500.0,0.00014632,2]
[404427560,1770132632830,-500.0,0.00014632,2]
[404427562,1770132632839,-500.0,0.00014632,2]
[404427564,1770132632849,-500.0,0.00014632,2]
[404427566,1770132632858,-500.0,0.00014632,2]
[404427568,1770132632867,-500.0,0.00014632,2]
[404427570,1770132632877,-500.0,0.00014632,2]
[404427572,1770132632886,-500.0,0.00014632,2]
[404427574,1770132632895,-500.0,0.00014632,2]
[404427576,1770132632904,-500.0,0.00014632,2]
[404427578,1770132632915,-504.76623709,0.00014632,2]
[404427580,1770132632925,-500.0,0.00014632,2]
[404427582,1770132632934,-500.0,0.00014632,2]
[404427584,1770132632944,-500.0,0.00014632,2]
[404427586,1770132632954,-500.0,0.00014632,2]
[404427588,1770132632963,-500.0,0.00014632,2]
[404427589,1770132632972,-500.0,0.00014632,2]
[404427591,1770132632981,-500.0,0.00014632,2]
[404427593,1770132632991,-500.0,0.00014632,2]
[404427595,1770132633000,-500.0,0.00014632,2]
[404427597,1770132633009,-500.0,0.00014632,2]
[404427599,1770132633019,-500.0,0.00014632,2]
[404427601,1770132633028,-500.0,0.00014632,2]
[404427603,1770132633037,-500.0,0.00014632,2]
[404427605,1770132633047,-268.06050575,0.00014632,2]
[404427607,1770132633056,-500.0,0.00014632,2]
[404427609,1770132633065,-500.0,0.00014632,2]
[404427611,1770132633075,-500.0,0.00014632,2]
[404427613,1770132633084,-500.0,0.00014632,2]
[404427615,1770132633093,-500.0,0.00014632,2]
[404427617,1770132633102,-500.0,0.00014632,2]
[404427619,1770132633112,-500.0,0.00014632,2]
[404427621,1770132633122,-500.0,0.00014632,2]
[404427623,1770132633132,-500.0,0.00014632,2]
[404427625,1770132633140,-500.0,0.00014632,2]
[404427627,1770132633153,-500.0,0.00014632,2]
[404427628,1770132633162,-500.0,0.00014632,2]
[404427630,1770132633174,-500.0,0.00014632,2]
[404427632,1770132633183,-500.0,0.00014632,2]
[404427634,1770132633192,-500.0,0.00014632,2]
[404427636,1770132633202,-500.0,0.00014632,2]
[404427638,1770132633212,-500.0,0.00014632,2]
[404427641,1770132633223,-500.0,0.00014632,2]
[404427642,1770132633233,-500.0,0.00014632,2]
[404427644,1770132633242,-500.0,0.00014632,2]
[404427646,1770132633251,-500.0,0.00014632,2]
[404427648,1770132633260,-500.0,0.00014632,2]
[404427650,1770132633269,-500.0,0.00014632,2]
[404427652,1770132633278,-500.0,0.00014632,2]
[404427654,1770132633287,-500.0,0.00014632,2]
[404427656,1770132633297,-500.0,0.00014632,2]
[404427658,1770132633306,-500.0,0.00014632,2]
[404427660,1770132633315,-318.8066887,0.00014632,2]
[404427662,1770132633324,-500.0,0.00014632,2]
[404427664,1770132633334,-500.0,0.00014632,2]
[404427666,1770132633343,-500.0,0.00014632,2]
[404427668,1770132633352,-500.0,0.00014632,2]
[404427670,1770132633362,-500.0,0.00014632,2]
[404427672,1770132633372,-500.0,0.00014632,2]
[404427674,1770132633381,-500.0,0.00014632,2]
[404427676,1770132633390,-500.0,0.00014632,2]
[404427678,1770132633400,-500.0,0.00014632,2]
[404427680,1770132633409,-500.0,0.00014632,2]
[404427682,1770132633420,-500.0,0.00014632,2]
[404427684,1770132633429,-500.0,0.00014632,2]
[404427686,1770132633438,-500.0,0.00014632,2]
[404427688,1770132633447,-500.0,0.00014632,2]
[404427690,1770132633457,-500.0,0.00014632,2]
[404427692,1770132633466,-500.0,0.00014632,2]
[404427694,1770132633476,-500.0,0.00014632,2]
[404427696,1770132633486,-500.0,0.00014632,2]
[404427705,1770132633561,-500.0,0.00014632,2]
[404427707,1770132633571,-500.0,0.00014632,2]
[404427709,1770132633581,-500.0,0.00014632,2]
[404427711,1770132633590,-500.0,0.00014632,2]
[404427713,1770132633599,-500.0,0.00014632,2]
[404427715,1770132633608,-500.0,0.00014632,2]
[404427717,1770132633618,-500.0,0.00014632,2]
[404427719,1770132633627,-500.0,0.00014632,2]
[404427721,1770132633636,-500.0,0.00014632,2]
[404427723,1770132633646,-500.0,0.00014632,2]
[404427725,1770132633655,-500.0,0.00014632,2]
[404427727,1770132633666,-500.0,0.00014632,2]
[404427729,1770132633676,-500.0,0.00014632,2]
[404427731,1770132633685,-550.0,0.00014632,2]
[404427733,1770132633695,-500.0,0.00014632,2]
[404427735,1770132633704,-500.0,0.00014632,2]
[404427736,1770132633713,-500.0,0.00014632,2]
[404427738,1770132633723,-500.0,0.00014632,2]
[404427740,1770132633732,-499.99999999,0.00014632,2]
[404427742,1770132633741,-500.0,0.00014632,2]
[404427744,1770132633751,-500.0,0.00014632,2]
[404427746,1770132633760,-500.0,0.00014632,2]
[404427748,1770132633770,-500.0,0.00014632,2]
[404427750,1770132633779,-500.0,0.00014632,2]
[404427752,1770132633788,-500.0,0.00014632,2]
[404427754,1770132633798,-500.0,0.00014632,2]
[404427756,1770132633807,-500.0,0.00014632,2]
[404427758,1770132633817,-500.0,0.00014632,2]
[404427760,1770132633826,-500.0,0.00014632,2]
[404427762,1770132633835,-200.0,0.00014632,2]
[404427764,1770132633844,-500.0,0.00014632,2]
[404427766,1770132633854,-500.0,0.00014632,2]
[404427768,1770132633864,-550.0,0.00014632,2]
[404427770,1770132633874,-500.0,0.00014635,2]
[404427772,1770132633883,-54666.8810121,0.00014636,2]
[404427774,1770132633893,-693.22534777,0.00014695,2]
[404427776,1770132633902,-1500.0,0.00014795,2]
[404427778,1770132633911,-500.0,0.00014909,2]
[404427780,1770132633922,-2000.0,0.00014916,2]
[404427781,1770132633931,-153.62152773,0.00015,2]
[404427782,1770132633941,-151.0,0.00015,2]
[404427783,1770132633951,-43303.55799001,0.00015,2]
[404427784,1770132633960,-4034.0660349,0.00015,2]
[404427785,1770132633969,-1375.52778254,0.00015,2]
[404427786,1770132633978,-500.0,0.00015183,2]
[404427787,1770132633987,-349.827,0.000153,2]
[404427788,1770132633996,-151.0,0.000153,2]
[404427789,1770132634005,-500.0,0.00015342,2]
[404427790,1770132634014,-303.44282387,0.00015342,2]
[404427791,1770132634022,-500.0,0.00015361,2]
[404427792,1770132634031,-517.58,0.00015453,3]
[404427793,1770132634040,-455.68,0.00015454,3]
[404427794,1770132634049,-500.0,0.00015457,2]
[404427795,1770132634058,-500.0,0.00015462,2]
[404427796,1770132634067,-500.0,0.00015462,2]
[404427797,1770132634076,-500.0,0.00015462,2]
[404427798,1770132634084,-500.0,0.00015462,2]
[404427799,1770132634093,-500.0,0.00015463,2]
[404427800,1770132634102,-500.0,0.00015463,2]
[404427801,1770132634111,-500.0,0.00015463,2]
[404427802,1770132634120,-500.0,0.00015463,2]
[404427803,1770132634129,-500.0,0.00015463,2]
[404427804,1770132634138,-500.0,0.00015463,2]
[404427805,1770132634151,-500.0,0.00015463,2]
[404427806,1770132634159,-2500.0,0.00015464,2]
[404427807,1770132634169,-151.0,0.000156,2]
[404427809,1770132634179,-500.0,0.00015731,2]
[404427810,1770132634189,-189.74484578,0.00015759,2]
[404427812,1770132634198,-318.6689225,0.00015861,2]
[404427814,1770132634207,-500.0,0.00015905,2]
[404427816,1770132634219,-420.0,0.00015912,2]
[404427818,1770132634228,-1680.0,0.00015985,2]
[404427820,1770132634237,-151.0,0.00016,2]
[404427822,1770132634248,-116.0565816,0.00016005,2]
[404427833,1770132634385,-334.45923056,0.00016005,2]
[404428064,1770132640950,-49.48418784,0.00016005,2]
[404428066,1770132640959,-500.0,0.00016009,2]
[404428068,1770132640969,-500.0,0.00016009,2]
[404428070,1770132640979,-500.0,0.00016009,2]
[404428073,1770132640990,-500.0,0.00016009,2]
[404428074,1770132640999,-500.0,0.00016009,2]
[404428077,1770132641009,-500.0,0.00016009,2]
[404428078,1770132641019,-500.0,0.00016009,2]
[404428081,1770132641029,-500.0,0.00016009,2]
[404428083,1770132641038,-500.0,0.00016009,2]
[404428084,1770132641047,-698.31126034,0.00016011,2]
[404428086,1770132641057,-193.63854009,0.00016011,2]
[404428088,1770132641067,-1440.24241596,0.00016012,2]
[404428090,1770132641079,-717.828,0.00016012,2]
[404428093,1770132641089,-637.573938,0.00016012,2]
[404428124,1770132641385,-3e-08,0.00016012,2]
[404428126,1770132641397,-204.35564601,0.00016012,2]
[404428128,1770132641406,-800.0,0.00016191,2]
[404428130,1770132641415,-192.74033012,0.00016194,2]
[404428132,1770132641427,-500.0,0.00016279,2]
[404428134,1770132641436,-151.0,0.000163,2]
[404428136,1770132641446,-500.0,0.00016437,2]
[404428138,1770132641455,-22.47244973,0.00016437,2]
[404428354,1770132645584,-274.06446937,0.00015845,2]
[404428356,1770132645594,-774.55416037,0.00016011,2]
[404428358,1770132645603,-1742.74686082,0.00016011,2]
[404428360,1770132645613,-477.52755027,0.00016437,2]
[404428362,1770132645622,-500.0,0.00016437,2]
[404428364,1770132645632,-500.0,0.00016437,2]
[404428366,1770132645641,-500.0,0.00016437,2]
[404428369,1770132645652,-500.0,0.00016437,2]
[404428370,1770132645662,-500.0,0.00016437,2]
[404428372,1770132645672,-500.0,0.00016437,2]
[404428373,1770132645684,-500.0,0.00016437,2]
[404428374,1770132645694,-500.0,0.00016437,2]
[404428375,1770132645703,-500.0,0.00016437,2]
[404428376,1770132645713,-500.0,0.00016438,2]
[404428377,1770132645723,-500.0,0.00016438,2]
[404428378,1770132645733,-500.0,0.00016438,2]
[404428379,1770132645743,-500.0,0.00016438,2]
[404428380,1770132645753,-500.0,0.00016438,2]
[404428381,1770132645762,-500.0,0.00016438,2]
[404428383,1770132645772,-500.0,0.00016438,2]
[404428385,1770132645782,-500.0,0.00016438,2]
[404428387,1770132645791,-500.0,0.00016438,2]
[404428389,1770132645801,-500.0,0.00016438,2]
[404428391,1770132645811,-500.0,0.00016438,2]
[404428393,1770132645820,-500.0,0.00016438,2]
[404428394,1770132645829,-500.0,0.00016438,2]